fUSD/lending_fUSD_20250702
["ID","MTS","AMOUNT","RATE_DAILY","PERIOD"]
[369078875,1751459452399,-226.066157,0.00032876,7]
[369078876,1751459452408,-5467.22,0.00032876,12]
[369078877,1751459452418,-5002.01,0.00032876,12]
[369078878,1751459452428,-490.0,0.00032876,12]
[369078879,1751459452438,-2994.21,0.00032876,12]
[369078880,1751459452447,-2349.24,0.00032876,12]
[369078881,1751459452598,-6450.42,0.00032876,12]
[369078882,1751459452627,-460.0,0.00032876,12]
[369078883,1751459452637,-1056.4,0.00032876,12]
[369078884,1751459452647,-460.0,0.00032876,12]
[369078885,1751459452656,-460.0,0.00032876,12]
[369078886,1751459452665,-460.0,0.00032876,12]
[369078887,1751459452674,-5750.28,0.00032876,12]
[369078888,1751459452683,-1089.24,0.00032876,12]
[369078889,1751459452693,-1083.75,0.00032876,12]
[369078890,1751459452702,-773.32,0.00032876,12]
[369078891,1751459452711,-490.0,0.00032876,12]
[369078892,1751459452720,-490.0,0.00032876,12]
[369078893,1751459452729,-513.71,0.00032876,12]
[369078894,1751459452738,-3844.97,0.00032876,12]
[369078895,1751459452748,-460.0,0.00032876,12]
[369078896,1751459452757,-460.0,0.00032876,12]
[369078897,1751459452767,-6187.21,0.00032876,12]
[369078898,1751459452776,-492.78114716,0.00032876,12]
[369078899,1751459452785,-460.0,0.00032876,12]
[369078900,1751459452795,-1186.57,0.00032876,12]
[369078901,1751459452805,-2077.98,0.00032876,12]
[369078902,1751459452814,-851.5,0.00032876,12]
[369078903,1751459452823,-785.12,0.00032876,12]
[369078904,1751459452832,-460.0,0.00032876,12]
[369078905,1751459452842,-460.0,0.00032876,12]
[369078906,1751459452851,-460.0,0.00032876,12]
[369078907,1751459452861,-460.0,0.00032876,12]
[369078908,1751459452871,-2244.04,0.00032876,12]
[369078909,1751459452880,-916.28,0.00032876,12]
[369078910,1751459452889,-460.0,0.00032876,12]
[369078911,1751459452898,-460.0,0.00032876,12]
[369078912,1751459452907,-2974.55,0.00032876,12]
[369078913,1751459452917,-1819.26,0.00032876,12]
[369078914,1751459452926,-460.0,0.00032876,12]
[369078915,1751459452935,-460.0,0.00032876,12]
[369078916,1751459452945,-460.0,0.00032876,12]
[369078917,1751459452954,-701.11,0.00032876,12]
[369078918,1751459452963,-1630.15,0.00032876,12]
[369078919,1751459452972,-2914.46,0.00032876,12]
[369078920,1751459452982,-460.0,0.00032876,12]
[369078921,1751459452991,-511.87484656,0.00032876,12]
[369078922,1751459453001,-229.94464093,0.00032876,12]
[369078923,1751459453011,-460.0,0.00032876,12]
[369078924,1751459453020,-982.01,0.00032876,12]
[369078925,1751459453029,-2068.42,0.00032876,12]
[369078926,1751459453038,-502.46,0.00032876,12]
[369078927,1751459453047,-7362.46,0.00032876,12]
[369078928,1751459453056,-980.01,0.00032876,12]
[369078929,1751459453065,-3109.76,0.00032876,12]
[369078930,1751459453075,-460.0,0.00032876,12]
[369078931,1751459453084,-460.0,0.00032876,12]
[369078932,1751459453093,-460.0,0.00032876,12]
[369078933,1751459453102,-460.0,0.00032876,12]
[369078934,1751459453115,-460.0,0.00032876,12]
[369078935,1751459453126,-460.0,0.00032876,12]
[369078936,1751459453135,-576.5,0.00032876,12]
[369078937,1751459453144,-1001.47,0.00032876,12]
[369078938,1751459453155,-566.64284291,0.00032876,12]
[369078939,1751459453163,-460.0,0.00032876,12]
[369078940,1751459453173,-1773.86,0.00032876,12]
[369078941,1751459453182,-460.0,0.00032876,12]
[369078942,1751459453192,-493.0019289,0.00032876,12]
[369078943,1751459453202,-460.0,0.00032876,12]
[369078944,1751459453212,-460.0,0.00032876,12]
[369078945,1751459453222,-460.0,0.00032876,12]
[369078946,1751459453232,-460.0,0.00032876,12]
[369078947,1751459453241,-1832.48,0.00032876,12]
[369078948,1751459453251,-460.0,0.00032876,12]
[369078949,1751459453261,-828.58,0.00032876,12]
[369078950,1751459453271,-460.0,0.00032876,12]
[369078951,1751459453280,-460.0,0.00032876,2]
[369078952,1751459453290,-334.45,0.00032877,2]
[369078953,1751459453299,-13130.2836225,0.00032877,2]
[369078954,1751459453308,-150.0,0.00032877,2]
[369078955,1751459453318,-153.6767492,0.00032877,2]
[369078956,1751459453327,-5448.2610904,0.00032877,2]
[369078957,1751459453336,-1507.0998098,0.00032877,2]
[369078958,1751459453346,-11500.4,0.000329,4]
[369078959,1751459453356,-1200.0,0.000329,12]
[369078960,1751459453366,-191.86854497,0.00032942,2]
[369078961,1751459453376,-770.03493091,0.00032946,2]
[369078962,1751459453385,-1000.0,0.00032964,7]
[369078963,1751459453395,-2678.51469,0.00032967,16]
[369078964,1751459453404,-150.0,0.00032987,2]
[369078965,1751459453414,-300.0,0.00032991,2]
[369078966,1751459453423,-606.9548,0.00033,30]
[369078967,1751459453433,-381.832439,0.00033,14]
[369078968,1751459453442,-1000.0,0.00033,7]
[369078969,1751459453452,-191.86854497,0.00033036,2]
[369078970,1751459453462,-770.03493091,0.00033039,2]
[369078971,1751459453472,-159.79,0.00033063,2]
[369078972,1751459453482,-1534.0,0.00033074,2]
[369078973,1751459453492,-446.0,0.00033074,2]
[369078974,1751459453501,-1000.0,0.00033101,7]
[369078975,1751459453511,-191.86854497,0.0003313,2]
[369078976,1751459453521,-770.03493091,0.00033132,2]
[369078977,1751459453530,-500.0,0.0003315,2]
[369078978,1751459453540,-460.0,0.0003315,12]
[369078979,1751459453550,-460.0,0.0003315,12]
[369078980,1751459453563,-554.04746253,0.0003315,12]
[369078981,1751459453573,-460.0,0.0003315,12]
[369078982,1751459453583,-460.0,0.0003315,12]
[369078983,1751459453592,-460.0,0.0003315,12]
[369078984,1751459453602,-460.0,0.0003315,12]
[369078985,1751459453611,-460.0,0.0003315,12]
[369078986,1751459453621,-460.0,0.0003315,12]
[369078987,1751459453633,-460.0,0.0003315,12]
[369078988,1751459453643,-460.0,0.0003315,12]
[369078989,1751459453654,-460.0,0.0003315,12]
[369078990,1751459453663,-460.0,0.0003315,12]
[369078991,1751459453672,-460.0,0.0003315,12]
[369078992,1751459453682,-460.0,0.0003315,12]
[369078993,1751459453692,-484.39,0.0003315,12]
[369078994,1751459453701,-520.0,0.0003315,12]
[369078995,1751459453711,-224.56065599,0.0003315,12]
[369078996,1751459453721,-526.89751502,0.0003315,12]
[369078997,1751459453731,-460.0,0.0003315,12]
[369078998,1751459453740,-460.0,0.0003315,12]
[369078999,1751459453751,-460.0,0.0003315,12]
[369079000,1751459453761,-520.0,0.0003315,12]
[369079001,1751459453770,-520.0,0.0003315,12]
[369079002,1751459453781,-520.0,0.0003315,12]
[369079003,1751459453790,-460.0,0.0003315,12]
[369079004,1751459453799,-401.93395468,0.0003315,12]
[369079005,1751459453809,-520.0,0.0003315,12]
[369079006,1751459453818,-460.0,0.0003315,12]
[369079007,1751459453828,-582.43266373,0.0003315,12]
[369079008,1751459453838,-460.0,0.0003315,12]
[369079009,1751459453848,-520.0,0.0003315,12]
[369079010,1751459453858,-460.0,0.0003315,12]
[369079011,1751459453867,-520.0,0.0003315,12]
[369079012,1751459453876,-520.0,0.0003315,12]
[369079013,1751459453886,-460.0,0.0003315,12]
[369079014,1751459453895,-261.76630273,0.0003315,12]
[369079015,1751459453905,-460.0,0.0003315,12]
[369079016,1751459453914,-521.06507699,0.0003315,12]
[369079017,1751459453923,-495.46,0.0003315,12]
[369079018,1751459453932,-460.0,0.0003315,12]
[369079019,1751459453941,-460.0,0.0003315,12]
[369079020,1751459453950,-496.82,0.0003315,12]
[369079021,1751459453960,-460.0,0.0003315,12]
[369079022,1751459453969,-757.99,0.0003315,12]
[369079023,1751459453979,-523.76099112,0.0003315,12]
[369079024,1751459453988,-460.0,0.0003315,12]
[369079025,1751459453997,-460.0,0.0003315,12]
[369079026,1751459454008,-522.17406747,0.0003315,12]
[369079027,1751459454017,-460.0,0.0003315,12]
[369079028,1751459454026,-520.0,0.0003315,12]
[369079029,1751459454035,-460.0,0.0003315,12]
[369079030,1751459454044,-315.19195337,0.0003315,12]
[369079031,1751459454054,-460.0,0.0003315,12]
[369079032,1751459454063,-460.0,0.0003315,12]
[369079033,1751459454073,-460.0,0.0003315,12]
[369079034,1751459454082,-520.00000003,0.0003315,12]
[369079035,1751459454092,-460.0,0.0003315,12]
[369079036,1751459454102,-460.0,0.0003315,12]
[369079037,1751459454112,-520.0,0.0003315,12]
[369079038,1751459454121,-460.0,0.0003315,12]
[369079039,1751459454131,-520.0,0.0003315,12]
[369079040,1751459454140,-460.0,0.0003315,12]
[369079041,1751459454150,-520.0,0.0003315,12]
[369079042,1751459454159,-460.0,0.0003315,12]
[369079043,1751459454168,-520.0,0.0003315,12]
[369079044,1751459454178,-460.0,0.0003315,12]
[369079045,1751459454187,-460.0,0.0003315,12]
[369079046,1751459454198,-521.30622119,0.0003315,12]
[369079047,1751459454207,-460.0,0.0003315,12]
[369079048,1751459454217,-552.27,0.0003315,12]
[369079049,1751459454226,-460.0,0.0003315,12]
[369079050,1751459454236,-460.0,0.0003315,12]
[369079051,1751459454247,-520.0,0.0003315,12]
[369079052,1751459454256,-520.0,0.0003315,12]
[369079053,1751459454266,-239.60481127,0.0003315,12]
[369079054,1751459454276,-460.0,0.0003315,12]
[369079055,1751459454285,-460.0,0.0003315,12]
[369079056,1751459454295,-460.0,0.0003315,12]
[369079057,1751459454304,-460.0,0.0003315,12]
[369079058,1751459454316,-460.0,0.0003315,12]
[369079059,1751459454326,-460.0,0.0003315,12]
[369079060,1751459454336,-520.0,0.0003315,12]
[369079061,1751459454346,-460.0,0.0003315,12]
[369079062,1751459454357,-460.0,0.0003315,12]
[369079063,1751459454367,-460.0,0.0003315,12]
[369079064,1751459454376,-460.0,0.0003315,12]
[369079065,1751459454386,-460.0,0.0003315,12]
[369079066,1751459454395,-520.0,0.0003315,12]
[369079067,1751459454405,-460.0,0.0003315,12]
[369079068,1751459454414,-520.95039967,0.0003315,12]
[369079069,1751459454424,-520.0,0.0003315,12]
[369079070,1751459454433,-460.0,0.0003315,7]
[369079071,1751459454443,-460.0,0.0003315,12]
[369079072,1751459454452,-460.0,0.0003315,12]
[369079073,1751459454461,-460.0,0.0003315,12]
[369079074,1751459454470,-548.98952576,0.0003315,12]
[369079075,1751459454480,-520.0,0.0003315,12]
[369079076,1751459454490,-470.2,0.0003315,12]
[369079077,1751459454500,-923.56,0.0003315,12]
[369079078,1751459454509,-598.43,0.0003315,12]
[369079079,1751459454518,-460.0,0.0003315,12]
[369079080,1751459454527,-460.0,0.0003315,12]
[369079081,1751459454536,-460.0,0.0003315,12]
[369079082,1751459454545,-520.0,0.0003315,12]
[369079083,1751459454561,-460.0,0.0003315,12]
[369079084,1751459454576,-460.0,0.0003315,12]
[369079085,1751459454585,-460.0,0.0003315,12]
[369079086,1751459454594,-460.0,0.0003315,12]
[369079087,1751459454605,-460.0,0.0003315,12]
[369079088,1751459454614,-460.0,0.0003315,12]
[369079089,1751459454623,-520.0,0.0003315,12]
[369079090,1751459454632,-460.0,0.0003315,12]
[369079091,1751459454643,-536.37,0.0003315,12]
[369079092,1751459454652,-526.72953876,0.0003315,12]
[369079093,1751459454662,-460.0,0.0003315,12]
[369079094,1751459454671,-460.0,0.0003315,12]
[369079095,1751459454680,-460.0,0.0003315,12]
[369079096,1751459454689,-522.32708368,0.0003315,12]
[369079097,1751459454698,-460.0,0.0003315,12]
[369079098,1751459454707,-460.0,0.0003315,12]
[369079099,1751459454716,-460.0,0.0003315,12]
[369079100,1751459454725,-460.0,0.0003315,12]
[369079101,1751459454734,-269.40632935,0.0003315,12]
[369079102,1751459454743,-460.0,0.0003315,12]
[369079103,1751459454753,-481.51,0.0003315,12]
[369079104,1751459454762,-460.0,0.0003315,12]
[369079105,1751459454771,-460.0,0.0003315,12]
[369079106,1751459454780,-520.0,0.0003315,12]
[369079107,1751459454791,-499.77,0.0003315,12]
[369079108,1751459454799,-512.13,0.0003315,12]
[369079109,1751459454808,-683.53,0.0003315,12]
[369079110,1751459454817,-520.0,0.0003315,12]
[369079111,1751459454826,-460.0,0.0003315,12]
[369079112,1751459454836,-521.18048835,0.0003315,12]
[369079113,1751459454845,-460.0,0.0003315,12]
[369079114,1751459454855,-520.09,0.0003315,12]
[369079115,1751459454865,-510.0,0.0003315,12]
[369079116,1751459454874,-396.32152454,0.0003315,12]
[369079117,1751459454883,-460.0,0.0003315,12]
[369079118,1751459454892,-587.67,0.0003315,12]
[369079119,1751459454902,-460.0,0.0003315,12]
[369079120,1751459454912,-460.0,0.0003315,12]
[369079121,1751459454921,-460.0,0.0003315,12]
[369079122,1751459454930,-460.0,0.0003315,12]
[369079123,1751459454939,-460.0,0.0003315,12]
[369079124,1751459454949,-520.0,0.0003315,12]
[369079125,1751459454958,-460.0,0.0003315,12]
[369079126,1751459454967,-460.0,0.0003315,12]
[369079127,1751459454976,-460.0,0.0003315,12]
[369079128,1751459454985,-460.0,0.0003315,12]
[369079129,1751459454994,-218.82723912,0.0003315,12]
[369079130,1751459455003,-460.0,0.0003315,12]
[369079131,1751459455013,-483.12,0.0003315,12]
[369079132,1751459455022,-520.0,0.0003315,12]
[369079133,1751459455032,-460.0,0.0003315,12]
[369079134,1751459455044,-460.0,0.0003315,12]
[369079135,1751459455053,-460.0,0.0003315,12]
[369079136,1751459455063,-460.0,0.0003315,12]
[369079137,1751459455072,-460.0,0.0003315,12]
[369079138,1751459455081,-460.0,0.0003315,12]
[369079139,1751459455090,-460.0,0.0003315,12]
[369079140,1751459455099,-460.0,0.0003315,12]
[369079141,1751459455265,-460.0,0.0003315,12]
[369079142,1751459455275,-528.90446247,0.0003315,12]
[369079143,1751459455284,-460.0,0.0003315,12]
[369079144,1751459455294,-289.61303835,0.0003315,12]
[369079145,1751459455303,-460.0,0.0003315,12]
[369079146,1751459455313,-460.0,0.0003315,12]
[369079147,1751459455322,-615.38,0.0003315,12]
[369079148,1751459455332,-460.0,0.0003315,12]
[369079149,1751459455342,-521.8877914,0.0003315,12]
[369079150,1751459455351,-460.0,0.0003315,12]
[369079151,1751459455361,-520.0,0.0003315,12]
[369079152,1751459455370,-520.0,0.0003315,12]
[369079153,1751459455379,-520.0,0.0003315,12]
[369079154,1751459455388,-520.0,0.0003315,12]
[369079155,1751459455397,-460.0,0.0003315,12]
[369079156,1751459455407,-460.0,0.0003315,12]
[369079157,1751459455416,-525.16103318,0.0003315,12]
[369079158,1751459455426,-460.0,0.0003315,12]
[369079159,1751459455436,-460.0,0.0003315,12]
[369079160,1751459455445,-536.40108979,0.0003315,12]
[369079161,1751459455454,-460.0,0.0003315,12]
[369079162,1751459455463,-460.0,0.0003315,12]
[369079163,1751459455473,-460.0,0.0003315,12]
[369079164,1751459455482,-460.0,0.0003315,12]
[369079165,1751459455491,-460.0,0.0003315,12]
[369079166,1751459455501,-460.0,0.0003315,12]
[369079167,1751459455510,-460.0,0.0003315,12]
[369079168,1751459455520,-520.0,0.0003315,12]
[369079169,1751459455529,-460.0,0.0003315,12]
[369079170,1751459455538,-460.0,0.0003315,12]
[369079171,1751459455547,-460.0,0.0003315,12]
[369079172,1751459455559,-460.0,0.0003315,7]
[369079173,1751459455568,-460.0,0.0003315,12]
[369079174,1751459455578,-339.19478739,0.0003315,12]
[369079175,1751459455588,-460.0,0.0003315,12]
[369079176,1751459455599,-460.0,0.0003315,12]
[369079177,1751459455608,-460.0,0.0003315,12]
[369079178,1751459455618,-460.0,0.0003315,12]
[369079179,1751459455627,-460.0,0.0003315,12]
[369079180,1751459455638,-460.0,0.0003315,12]
[369079181,1751459455648,-525.3748867,0.0003315,12]
[369079182,1751459455658,-520.0,0.0003315,12]
[369079183,1751459455667,-520.0,0.0003315,12]
[369079184,1751459455676,-520.0,0.0003315,12]
[369079185,1751459455686,-460.0,0.0003315,12]
[369079186,1751459455695,-460.0,0.0003315,12]
[369079187,1751459455704,-460.0,0.0003315,12]
[369079188,1751459455713,-460.0,0.0003315,12]
[369079189,1751459455724,-530.3,0.0003315,12]
[369079190,1751459455734,-460.0,0.0003315,12]
[369079191,1751459455743,-460.0,0.0003315,12]
[369079192,1751459455753,-460.0,0.0003315,12]
[369079193,1751459455762,-460.0,0.0003315,12]
[369079194,1751459455772,-460.0,0.0003315,12]
[369079195,1751459455781,-281.74672952,0.0003315,12]
[369079196,1751459455792,-460.0,0.0003315,12]
[369079197,1751459455801,-460.0,0.0003315,12]
[369079198,1751459455810,-460.0,0.0003315,12]
[369079199,1751459455820,-460.0,0.0003315,12]
[369079200,1751459455829,-672.34,0.0003315,12]
[369079201,1751459455838,-271.27,0.0003315,12]
[369079202,1751459455847,-520.0,0.0003315,12]
[369079203,1751459455856,-460.0,0.0003315,12]
[369079204,1751459455866,-460.0,0.0003315,12]
[369079205,1751459455875,-451.53600982,0.0003315,12]
[369079206,1751459455884,-460.0,0.0003315,12]
[369079207,1751459455893,-300.0,0.0003315,12]
[369079208,1751459455903,-545.27,0.0003315,12]
[369079209,1751459455912,-552.95,0.0003315,12]
[369079210,1751459455921,-1054.77,0.0003315,10]
[369079211,1751459455931,-460.0,0.0003315,12]
[369079212,1751459455940,-520.0,0.0003315,12]
[369079213,1751459455949,-460.0,0.0003315,12]
[369079214,1751459455959,-991.92,0.0003315,12]
[369079215,1751459455968,-460.0,0.0003315,12]
[369079216,1751459455977,-383.03223706,0.0003315,12]
[369079217,1751459455987,-460.0,0.0003315,12]
[369079218,1751459455996,-460.0,0.0003315,12]
[369079219,1751459456006,-460.0,0.0003315,12]
[369079220,1751459456015,-460.0,0.0003315,12]
[369079221,1751459456024,-520.0,0.0003315,12]
[369079222,1751459456033,-460.0,0.0003315,12]
[369079223,1751459456043,-473.64,0.0003315,12]
[369079224,1751459456052,-520.0,0.0003315,12]
[369079225,1751459456062,-460.0,0.0003315,12]
[369079226,1751459456071,-487.94,0.0003315,12]
[369079227,1751459456080,-460.0,0.0003315,12]
[369079228,1751459456089,-460.0,0.0003315,12]
[369079229,1751459456099,-520.0,0.0003315,12]
[369079230,1751459456108,-460.0,0.0003315,12]
[369079231,1751459456117,-460.0,0.0003315,12]
[369079232,1751459456126,-520.0,0.0003315,12]
[369079233,1751459456136,-527.14476741,0.0003315,12]
[369079234,1751459456145,-460.0,0.0003315,12]
[369079235,1751459456154,-460.0,0.0003315,12]
[369079236,1751459456163,-460.0,0.0003315,12]
[369079237,1751459456173,-460.0,0.0003315,12]
[369079238,1751459456182,-520.0,0.0003315,12]
[369079239,1751459456192,-460.0,0.0003315,12]
[369079240,1751459456201,-460.0,0.0003315,12]
[369079241,1751459456211,-540.12783177,0.0003315,12]
[369079242,1751459456221,-520.0,0.0003315,12]
[369079243,1751459456231,-222.0,0.0003315,12]
[369079244,1751459456240,-460.0,0.0003315,12]
[369079245,1751459456250,-460.0,0.0003315,12]
[369079246,1751459456260,-460.0,0.0003315,12]
[369079247,1751459456269,-460.0,0.0003315,12]
[369079248,1751459456279,-522.40300981,0.0003315,12]
[369079249,1751459456288,-460.0,0.0003315,12]
[369079250,1751459456298,-460.0,0.0003315,12]
[369079251,1751459456309,-460.0,0.0003315,12]
[369079252,1751459456319,-460.0,0.0003315,12]
[369079253,1751459456328,-460.0,0.0003315,12]
[369079254,1751459456338,-527.59648406,0.0003315,12]
[369079255,1751459456347,-460.0,0.0003315,12]
[369079256,1751459456357,-460.0,0.0003315,12]
[369079257,1751459456369,-460.0,0.0003315,12]
[369079258,1751459456379,-460.0,0.0003315,12]
[369079259,1751459456389,-460.0,0.0003315,12]
[369079260,1751459456399,-471.23,0.0003315,12]
[369079261,1751459456408,-328.24769017,0.0003315,12]
[369079262,1751459456418,-460.0,0.0003315,12]
[369079263,1751459456427,-460.0,0.0003315,12]
[369079264,1751459456437,-481.08,0.0003315,12]
[369079265,1751459456446,-460.0,0.0003315,12]
[369079266,1751459456455,-520.0,0.0003315,12]
[369079267,1751459456465,-251.79779011,0.0003315,12]
[369079268,1751459456474,-460.0,0.0003315,12]
[369079269,1751459456484,-520.0,0.0003315,12]
[369079270,1751459456493,-520.0,0.0003315,12]
[369079271,1751459456503,-542.68343284,0.0003315,12]
[369079272,1751459456512,-460.0,0.0003315,12]
[369079273,1751459456522,-460.0,0.0003315,12]
[369079274,1751459456531,-460.0,0.0003315,12]
[369079275,1751459456542,-460.0,0.0003315,12]
[369079276,1751459456552,-520.0,0.0003315,12]
[369079277,1751459456564,-520.0,0.0003315,12]
[369079278,1751459456573,-460.0,0.0003315,12]
[369079279,1751459456583,-520.0,0.0003315,12]
[369079280,1751459456595,-460.0,0.0003315,12]
[369079281,1751459456604,-520.0,0.0003315,12]
[369079282,1751459456616,-263.57977032,0.0003315,12]
[369079283,1751459456626,-460.0,0.0003315,12]
[369079284,1751459456636,-460.0,0.0003315,12]
[369079285,1751459456646,-460.0,0.0003315,12]
[369079286,1751459456655,-460.0,0.0003315,12]
[369079287,1751459456664,-460.0,0.0003315,12]
[369079288,1751459456674,-500.0,0.0003315,12]
[369079289,1751459456683,-550.0,0.0003315,12]
[369079290,1751459456693,-460.0,0.0003315,12]
[369079291,1751459456702,-964.53,0.0003315,12]
[369079292,1751459456711,-460.0,0.0003315,12]
[369079293,1751459456721,-460.0,0.0003315,12]
[369079294,1751459456730,-460.0,0.0003315,12]
[369079295,1751459456739,-445.75222447,0.0003315,12]
[369079296,1751459456749,-460.0,0.0003315,12]
[369079297,1751459456758,-1339.56,0.0003315,12]
[369079298,1751459456767,-460.0,0.0003315,12]
[369079299,1751459456777,-460.0,0.0003315,12]
[369079300,1751459456786,-460.0,0.0003315,12]
[369079301,1751459456796,-460.0,0.0003315,12]
[369079302,1751459456805,-520.0,0.0003315,12]
[369079303,1751459456816,-460.0,0.0003315,12]
[369079304,1751459456826,-460.0,0.0003315,12]
[369079305,1751459456835,-460.0,0.0003315,12]
[369079306,1751459456844,-460.0,0.0003315,12]
[369079307,1751459456853,-525.41418769,0.0003315,12]
[369079308,1751459456864,-520.0,0.0003315,12]
[369079309,1751459456873,-212.86935129,0.0003315,12]
[369079310,1751459456883,-460.0,0.0003315,12]
[369079311,1751459456891,-460.0,0.0003315,12]
[369079312,1751459456901,-1145.3,0.0003315,12]
[369079313,1751459456910,-573.22113693,0.0003315,12]
[369079314,1751459456919,-460.0,0.0003315,12]
[369079315,1751459456928,-460.0,0.0003315,12]
[369079316,1751459456938,-460.0,0.0003315,12]
[369079317,1751459456947,-460.0,0.0003315,12]
[369079318,1751459456956,-508.65,0.0003315,12]
[369079319,1751459456965,-460.0,0.0003315,12]
[369079320,1751459456975,-527.14,0.0003315,12]
[369079321,1751459456984,-460.0,0.0003315,12]
[369079322,1751459456993,-460.0,0.0003315,12]
[369079323,1751459457002,-815.93,0.0003315,12]
[369079324,1751459457011,-495.73,0.0003315,12]
[369079325,1751459457021,-460.0,0.0003315,12]
[369079326,1751459457030,-460.0,0.0003315,12]
[369079327,1751459457039,-827.74,0.0003315,12]
[369079328,1751459457048,-460.0,0.0003315,12]
[369079329,1751459457057,-460.0,0.0003315,12]
[369079330,1751459457066,-527.42266082,0.0003315,12]
[369079331,1751459457076,-460.0,0.0003315,12]
[369079332,1751459457085,-520.0,0.0003315,12]
[369079333,1751459457095,-460.0,0.0003315,12]
[369079334,1751459457104,-979.03,0.0003315,12]
[369079335,1751459457113,-460.0,0.0003315,12]
[369079336,1751459457123,-528.67694503,0.0003315,12]
[369079337,1751459457132,-460.0,0.0003315,12]
[369079338,1751459457141,-328.78559114,0.0003315,12]
[369079339,1751459457150,-460.0,0.0003315,12]
[369079340,1751459457159,-460.0,0.0003315,12]
[369079341,1751459457169,-509.11,0.0003315,12]
[369079342,1751459457178,-460.0,0.0003315,12]
[369079343,1751459457187,-460.0,0.0003315,12]
[369079344,1751459457196,-522.3521354,0.0003315,12]
[369079345,1751459457206,-954.29,0.0003315,12]
[369079346,1751459457215,-460.0,0.0003315,12]
[369079347,1751459457224,-460.0,0.0003315,12]
[369079348,1751459457233,-460.0,0.0003315,12]
[369079349,1751459457242,-460.0,0.0003315,12]
[369079350,1751459457251,-1219.47,0.0003315,12]
[369079351,1751459457260,-460.0,0.0003315,12]
[369079352,1751459457269,-460.0,0.0003315,12]
[369079353,1751459457278,-520.0,0.0003315,12]
[369079354,1751459457287,-460.0,0.0003315,12]
[369079355,1751459457296,-460.0,0.0003315,12]
[369079356,1751459457305,-460.0,0.0003315,12]
[369079357,1751459457314,-285.35508976,0.0003315,12]
[369079358,1751459457324,-460.0,0.0003315,12]
[369079359,1751459457333,-1431.23,0.0003315,12]
[369079360,1751459457342,-460.0,0.0003315,12]
[369079361,1751459457351,-460.0,0.0003315,12]
[369079362,1751459457360,-460.0,0.0003315,12]
[369079363,1751459457369,-460.0,0.0003315,12]
[369079364,1751459457379,-460.0,0.0003315,12]
[369079365,1751459457388,-524.44223444,0.0003315,12]
[369079366,1751459457397,-460.0,0.0003315,12]
[369079367,1751459457406,-460.0,0.0003315,12]
[369079368,1751459457415,-713.72,0.0003315,12]
[369079369,1751459457425,-460.0,0.0003315,12]
[369079370,1751459457435,-1061.87,0.0003315,12]
[369079371,1751459457444,-460.0,0.0003315,12]
[369079372,1751459457453,-781.83,0.0003315,12]
[369079373,1751459457463,-460.0,0.0003315,12]
[369079374,1751459457472,-520.0,0.0003315,12]